bitfinex-derivatives/quotes_ETHF0:USTF0_20250904
["timestamp","ask_amount","ask_price","bid_price","bid_amount"]
[1756998437192,3.9755,4341.9,4341.2,3.2078]
[1756998437397,3.9755,4341.9,4341.3,1.0206]
[1756998437791,3.2078,4341.9,4341.4,0.7826]
[1756998437991,3.2078,4341.9,4341.6,0.7826]
[1756998438192,3.2078,4341.9,4341.8,0.7826]
[1756998438391,0.7677,4342.8,4341.8,1.19709]
[1756998438591,0.7677,4342.8,4342.0,0.3244]
[1756998438794,0.7677,4342.8,4342.1,0.238]
[1756998438994,0.7677,4342.8,4342.2,0.7826]
[1756998440895,0.7677,4342.8,4341.7,4.11889805]
[1756998440896,0.2973,4341.5,4339.6,3.2078]
[1756998441096,7.32669805,4340.0,4338.4,3.2078]
[1756998441298,4.11889805,4338.5,4337.8,0.7826]
[1756998441600,4.59377283,4337.9,4337.5,0.22709034]
[1756998441995,4.59377283,4337.6,4336.9,0.7826]
[1756998442196,4.59377283,4337.6,4337.2,5.25063737]
[1756998442403,4.59377283,4337.6,4337.2,5.49363737]
[1756998443495,3.2078,4337.3,4337.2,5.49363737]
[1756998443699,3.2078,4337.3,4337.2,6.27623737]
[1756998445092,3.2078,4337.3,4337.2,5.44663737]
[1756998449804,3.2078,4337.3,4337.2,1.0256]
[1756998450604,3.2078,4337.3,4337.2,5.44663737]
[1756998459011,3.2078,4337.3,4337.2,6.50753737]
[1756998460513,3.2078,4337.3,4337.2,6.26453737]
[1756998460713,3.2078,4337.3,4337.2,5.44563737]
[1756998460912,3.2078,4337.3,4337.2,6.50653737]
[1756998463615,3.5846,4337.3,4337.2,6.50653737]
[1756998463817,3.2078,4337.3,4337.2,6.50653737]
[1756998469027,3.2078,4338.0,4337.9,1.886]
[1756998469333,3.2078,4338.0,4337.9,6.54803737]
[1756998470137,3.2078,4338.0,4337.9,6.732952]
[1756998470430,3.2078,4338.0,4337.9,6.54803737]
[1756998470825,3.7136,4338.0,4337.9,6.54803737]
[1756998471025,3.2078,4338.0,4337.9,6.54803737]
[1756998471226,3.86581197,4338.0,4337.9,6.54803737]
[1756998471835,3.7136,4338.6,4338.5,2.2359]
[1756998472135,0.2355,4338.5,4337.6,3.2078]
[1756998472333,1.52385765,4338.4,4337.7,0.241]
[1756998472530,0.64625765,4338.3,4337.8,0.8846]
[1756998472733,0.5058,4338.0,4337.9,2.127]
[1756998473334,1.1131,4338.5,4338.1,0.8846]
[1756998473335,0.8776,4338.5,4338.1,0.8846]
[1756998473529,1.9028,4338.5,4338.4,1.3766]
[1756998473728,2.54568767,4338.5,4338.4,1.6176]
[1756998473933,2.54568767,4338.5,4338.4,0.241]
[1756998474230,2.78118767,4338.5,4338.4,0.241]
[1756998476137,2.78118767,4338.5,4337.7,0.8846]
[1756998476434,1.9028,4337.9,4337.8,5.95363737]
[1756998476637,5.1106,4337.9,4337.8,1.5326]
[1756998476829,5.1106,4337.9,4337.8,5.95363737]
[1756998477232,4.233,4337.9,4337.8,6.30703737]
[1756998477429,4.233,4337.9,4337.8,6.54803737]
[1756998477630,3.2078,4337.9,4337.8,6.54803737]
[1756998478731,4.233,4337.9,4337.8,6.03863737]
[1756998479241,4.233,4337.9,4337.8,1.6176]
[1756998479940,4.233,4337.9,4337.8,2.127]
[1756998480238,5.1106,4337.9,4337.8,2.127]
[1756998480431,3.7136,4337.9,4337.8,2.127]
[1756998481039,5.1106,4337.9,4337.8,0.8846]
[1756998481239,5.1106,4337.9,4337.8,1.6166]
[1756998481430,5.1106,4337.9,4337.8,0.24]
[1756998481830,3.2078,4337.9,4337.8,6.54703737]
[1756998482137,3.7136,4338.4,4338.3,1.886]
[1756998482330,3.7136,4338.4,4338.3,2.126]
[1756998482331,4.233,4338.4,4338.3,2.126]
[1756998482533,5.1106,4338.4,4338.3,2.126]
[1756998482728,0.8776,4338.8,4338.3,5.66243737]
[1756998483038,3.2078,4338.9,4338.3,5.66243737]
[1756998483039,4.233,4338.9,4338.8,6.30703737]
[1756998483234,4.233,4338.9,4338.8,6.54703737]
[1756998483626,3.2078,4338.9,4338.8,6.54703737]
[1756998484033,0.78132526,4339.4,4339.0,0.3499]
[1756998484235,4.0854,4340.4,4339.8,0.8846]
[1756998484430,4.0854,4340.4,4339.8,1.886]
[1756998484431,1.71903737,4339.9,4339.8,1.886]
[1756998484631,1.71903737,4339.9,4339.8,2.126]
[1756998484834,3.2078,4340.7,4339.9,0.8846]
[1756998485033,0.8776,4340.8,4340.2,0.8846]
[1756998485236,1.21323737,4340.3,4340.2,5.0938]
[1756998485436,2.23843737,4340.3,4340.2,2.126]
[1756998485642,3.11603737,4340.3,4340.2,3.4478]
[1756998485936,3.11603737,4340.3,4340.2,0.24]
[1756998486435,3.11603737,4340.3,4339.2,3.2078]
[1756998486436,1.9028,4339.3,4339.2,3.2078]
[1756998486642,1.9028,4339.3,4339.2,0.24]
[1756998486835,1.9028,4339.3,4339.2,1.6166]
[1756998487040,1.9028,4339.3,4339.2,1.1246]
[1756998487435,1.9028,4339.3,4339.2,0.24]
[1756998488940,1.9028,4339.3,4339.2,1.1246]
[1756998489341,1.0252,4339.3,4339.2,1.6166]
[1756998489642,0.5058,4339.3,4339.2,2.126]
[1756998489835,1.0252,4339.3,4339.2,2.126]
[1756998490638,0.5058,4339.3,4339.2,2.126]
[1756998490942,4.233,4339.9,4339.8,1.3766]
[1756998491140,1.0252,4339.9,4339.8,2.126]
[1756998491343,4.0854,4340.4,4339.8,1.2414]
[1756998491538,0.5058,4340.1,4340.0,0.8419]
[1756998491732,1.0252,4340.1,4340.0,1.7265]
[1756998491936,4.0854,4340.4,4339.8,0.24]
[1756998491937,1.9028,4339.9,4339.8,0.24]
[1756998492337,1.9028,4339.9,4339.8,1.7681]
[1756998492646,3.2078,4340.4,4339.9,0.9288]
[1756998492938,0.5763,4340.1,4340.0,0.9604]
[1756998493139,0.9455,4340.0,4339.8,0.24]
[1756998493344,3.2078,4340.4,4339.8,1.4005]
[1756998493637,0.9455,4340.5,4339.8,1.4005]
[1756998493638,0.9455,4340.5,4340.1,0.9288]
[1756998493840,0.5763,4340.5,4340.4,2.0893]
[1756998494241,0.9455,4341.0,4340.4,1.1605]
[1756998494439,0.5763,4340.7,4340.6,2.0893]
[1756998494640,0.5763,4340.7,4340.6,2.3293]
[1756998495347,1.171,4340.7,4340.6,2.3293]
[1756998495548,2.1165,4340.7,4340.6,1.7681]
[1756998495847,1.171,4340.7,4340.6,1.7681]
[1756998496248,2.1165,4340.7,4340.6,1.7681]
[1756998496442,2.1165,4340.7,4340.6,1.1688]
[1756998497045,3.2078,4341.1,4341.0,0.3611]
[1756998497253,4.1533,4341.6,4341.0,2.6904]
[1756998497447,4.3788,4341.6,4341.5,0.5993]
[1756998497643,4.3788,4341.6,4341.5,2.1282]
[1756998498846,4.59377283,4342.9,4342.0,0.9604]
[1756998498847,3.7841,4342.1,4342.0,0.9604]
[1756998499046,0.5763,4342.1,4342.0,2.6894]
[1756998499446,1.171,4342.1,4342.0,2.6894]
[1756998499754,2.1165,4342.1,4342.0,2.6894]
[1756998500256,1.171,4342.1,4342.0,2.6894]
[1756998500950,0.5763,4342.1,4342.0,2.6894]
[1756998501145,3.2078,4342.8,4342.0,2.6894]
[1756998501454,0.5763,4342.1,4342.0,5.8972]
[1756998502949,3.2078,4342.8,4342.1,0.9288]
[1756998503351,1.171,4342.2,4342.1,2.0893]
[1756998503551,1.171,4342.2,4342.1,2.3283]
[1756998504453,4.11699302,4342.7,4342.1,0.8383]
[1756998504653,2.1165,4342.2,4342.1,0.239]
[1756998505247,2.1165,4342.2,4342.1,1.1678]
[1756998505449,2.1165,4342.2,4342.1,1.7671]
[1756998505649,1.171,4342.2,4342.1,1.7671]
[1756998505851,3.2078,4342.8,4342.2,0.9288]
[1756998506047,4.3788,4342.8,4342.7,1.5281]
[1756998506247,4.3788,4342.8,4342.7,2.3283]
[1756998507458,3.7841,4342.8,4342.7,2.3283]
[1756998508158,5.3243,4342.8,4342.7,0.239]
[1756998508555,9.3243,4342.8,4342.7,0.239]
[1756998509254,5.3243,4342.8,4342.7,0.239]
[1756998509748,4.3788,4342.8,4342.7,1.7671]
[1756998510347,5.3243,4342.8,4342.7,0.239]
[1756998511354,4.3788,4342.8,4342.7,1.7671]
[1756998511658,3.2078,4342.8,4342.7,2.3283]
[1756998512055,3.7841,4342.8,4342.7,2.3283]
[1756998512658,5.3243,4342.8,4342.7,0.239]
[1756998512860,1.171,4342.2,4342.1,3.2078]
[1756998513058,2.1165,4342.2,4342.1,3.4468]
[1756998513263,2.1165,4342.2,4342.1,4.3756]
[1756998514165,2.1165,4342.2,4342.1,4.9749]
[1756998514866,2.1165,4342.2,4342.1,0.239]
[1756998515064,2.1165,4342.2,4342.1,1.1678]
[1756998515266,2.1165,4342.2,4342.1,0.239]
[1756998515660,1.171,4341.3,4341.2,32.7208]
[1756998515863,2.1165,4341.3,4341.2,32.031]
[1756998516260,2.1165,4341.3,4341.2,32.9598]
[1756998516261,1.171,4341.3,4341.2,32.9598]
[1756998516464,0.5763,4341.3,4341.2,32.9598]
[1756998517065,1.5218,4341.3,4341.2,32.9598]
[1756998517266,4.1533,4341.7,4341.3,0.9288]
[1756998517462,3.2078,4342.3,4341.7,0.9288]
[1756998517665,1.171,4341.9,4341.8,1.1678]
[1756998518158,1.171,4341.9,4341.8,1.7671]
[1756998518668,1.171,4341.9,4341.8,2.3283]
[1756998519059,2.1165,4341.9,4341.8,2.3283]
[1756998519368,1.171,4341.9,4341.8,2.3283]
[1756998519760,1.171,4341.9,4341.8,1.8073]
[1756998519967,4.1533,4342.3,4341.8,1.3995]
[1756998520163,0.9455,4342.2,4341.8,1.3995]
[1756998520367,3.2078,4342.3,4341.8,1.3995]
[1756998520665,3.2078,4342.3,4342.2,1.1605]
[1756998520868,4.1533,4342.9,4342.2,1.3985]
[1756998521167,2.1165,4342.3,4342.2,1.3985]
[1756998521369,0.9455,4342.3,4342.2,0.238]
[1756998522465,3.2078,4342.4,4342.2,0.238]
[1756998522666,4.0764,4342.4,4342.3,0.8958]
[1756998522860,0.5772,4342.2,4342.0,0.3509]
[1756998523063,0.5772,4342.2,4342.1,0.238]
[1756998523571,0.5772,4342.2,4342.1,1.1338]
[1756998523765,2.6711,4342.2,4342.1,1.7654]
[1756998523971,2.6711,4342.2,4342.1,0.238]
[1756998524567,2.6711,4342.2,4341.3,0.8958]
[1756998524767,0.6076,4341.4,4341.3,2.1533]
[1756998524972,2.0939,4341.4,4341.3,2.3913]
[1756998525767,2.0939,4341.4,4341.3,0.8993]
[1756998526375,2.0939,4341.4,4341.3,0.2734]
[1756998526570,2.0939,4341.4,4341.3,0.238]
[1756998526768,5.3017,4341.4,4341.3,0.238]
[1756998526964,1.226,4340.5,4340.4,3.2078]
[1756998527169,1.226,4340.5,4340.4,0.238]
[1756998528772,0.3574,4340.0,4339.9,3.2078]
[1756998528974,0.3574,4340.0,4339.9,0.238]
[1756998528975,1.226,4340.0,4339.9,0.238]
[1756998529372,1.226,4339.5,4339.4,3.2078]
[1756998529673,1.226,4339.5,4339.4,0.238]
[1756998536377,1.226,4339.5,4339.4,1.4955]
[1756998536779,1.8336,4339.5,4339.4,1.4955]
[1756998537771,2.4513,4339.5,4339.4,0.238]
[1756998537972,2.4513,4339.5,4339.4,0.8696]
[1756998538172,0.1152,4339.7,4339.5,0.8142]
[1756998538373,0.9838,4339.7,4339.6,1.2575]
[1756998538871,1.5914,4339.7,4339.6,1.2575]
[1756998539268,0.8686,4339.4,4339.3,3.2078]
[1756998539472,0.8686,4339.4,4338.2,0.8142]
[1756998539473,2.0939,4338.9,4338.8,0.8696]
[1756998539674,2.0939,4338.9,4338.8,1.4955]
[1756998540282,0.8686,4339.4,4338.8,5.5175]
[1756998540583,1.4762,4338.9,4338.8,4.7033]
[1756998540977,0.3574,4339.5,4338.8,5.5175]
[1756998541279,0.8686,4339.4,4338.9,0.8142]
[1756998541484,0.8686,4339.4,4339.3,1.2575]
[1756998541680,3.323,4339.7,4339.6,2.0717]
[1756998541681,0.1152,4339.7,4339.6,2.0717]
[1756998541882,0.1152,4339.7,4339.6,2.3107]
[1756998542784,0.1152,4339.7,4339.6,6.3107]
[1756998543382,0.1152,4339.7,4339.6,2.3107]
[1756998546275,1.226,4340.5,4339.7,0.4147]
[1756998546483,1.226,4340.5,4339.6,5.0532]
[1756998546484,0.8686,4340.5,4340.4,2.0717]
[1756998546681,0.8686,4340.5,4340.4,2.3097]
[1756998546878,0.3574,4341.0,4340.4,1.4955]
[1756998547186,1.8336,4340.5,4340.4,1.4955]
[1756998547975,0.8686,4340.5,4340.4,1.4955]
[1756998548289,4.1728,4341.0,4340.9,1.2575]
[1756998548580,0.3574,4341.5,4340.9,1.4955]
[1756998549089,0.8686,4341.4,4340.9,1.4955]
[1756998549290,0.3574,4341.5,4340.9,1.4955]
[1756998549585,1.8336,4341.5,4341.4,0.6316]
[1756998549787,2.4513,4341.5,4341.4,0.8696]
[1756998551082,2.4513,4341.5,4341.4,0.238]
[1756998551685,2.0939,4341.2,4341.1,3.2078]
[1756998551884,2.4513,4340.5,4340.4,3.2078]
[1756998552081,2.4513,4340.5,4340.4,3.4458]
[1756998552481,2.4513,4340.5,4340.4,4.0774]
[1756998552683,0.8686,4340.5,4340.4,5.4856]
[1756998552890,0.3574,4341.0,4340.4,5.4856]
[1756998553081,1.2505,4341.0,4340.4,5.4856]
[1756998553689,1.2505,4341.0,4340.9,1.2204]
[1756998553892,0.8931,4341.0,4340.9,2.2559]
[1756998554094,1.5113,4341.0,4340.9,1.4584]
[1756998554594,2.4896,4341.0,4340.9,1.4584]
[1756998554792,2.4896,4341.0,4340.9,0.238]
[1756998555193,2.4896,4341.0,4340.9,0.8477]
[1756998555791,0.8931,4341.0,4340.9,2.2559]
[1756998556790,4.7191,4341.4,4341.3,1.2204]
[1756998556990,4.7191,4341.4,4341.3,1.4584]
[1756998557799,5.348,4341.4,4341.3,1.4584]
[1756998558097,5.348,4341.4,4341.3,0.8477]
[1756998558586,2.1402,4341.4,4341.3,0.8477]
[1756998558995,2.1402,4341.4,4341.3,0.238]
[1756998559195,2.1402,4341.4,4340.9,3.2078]
[1756998559396,0.3494,4341.0,4340.9,3.2078]
[1756998559596,2.4896,4341.0,4340.9,3.4458]
[1756998559997,2.4896,4341.0,4340.9,4.6662]
[1756998560193,1.5113,4341.0,4340.9,5.4582]
[1756998560403,1.8607,4341.0,4340.9,4.6662]
[1756998561600,2.4896,4341.0,4340.9,4.6662]
[1756998562392,2.4896,4341.0,4340.9,3.4458]
[1756998562693,2.4896,4341.0,4340.9,4.0555]
[1756998562898,2.4896,4341.0,4340.9,3.2078]
[1756998563100,2.4896,4341.0,4340.9,3.4458]
[1756998563996,2.4896,4341.0,4340.9,3.2078]
[1756998564197,2.4896,4341.0,4340.9,0.238]
[1756998564894,2.4896,4341.0,4340.9,0.8477]
[1756998565098,0.8931,4341.0,4340.9,2.2504]
[1756998565300,0.8931,4341.4,4340.9,5.4582]
[1756998565495,1.2471,4341.0,4340.9,3.2078]
[1756998565698,2.4896,4341.0,4340.9,4.0555]
[1756998565897,2.4896,4341.0,4340.9,4.6662]
[1756998566296,2.4896,4341.0,4340.9,3.4458]
[1756998566700,2.4896,4341.0,4340.9,3.2078]
[1756998566912,1.5113,4340.2,4340.1,34.9978]
[1756998567295,1.5113,4340.2,4340.1,35.2358]
[1756998568205,1.5113,4339.2,4339.1,5.2827]
[1756998568500,0.3494,4340.0,4339.1,1.4584]
[1756998568702,0.6182,4339.3,4339.2,2.0749]
[1756998568902,2.1402,4339.3,4339.2,1.2204]
[1756998569108,2.1402,4339.3,4339.2,2.0749]
[1756998569301,0.8931,4339.9,4339.2,2.0749]
[1756998569502,0.8931,4339.2,4339.1,3.2078]
[1756998569704,2.1402,4339.2,4339.1,0.238]
[1756998570707,5.348,4339.2,4339.1,0.8477]
[1756998571406,5.348,4339.2,4339.1,0.238]
[1756998571604,5.348,4339.2,4338.5,31.79]
[1756998571605,1.2471,4338.6,4338.5,31.79]
[1756998571802,2.1402,4338.6,4338.5,0.238]
[1756998572208,2.1402,4338.6,4338.0,0.8545]
[1756998572209,2.1402,4338.2,4337.8,3.2078]
[1756998572411,2.1402,4338.2,4338.1,0.27807914]
[1756998573310,2.1402,4338.2,4338.1,0.238]
[1756998573811,2.1402,4338.2,4338.1,0.8477]
[1756998574111,2.1402,4337.9,4337.8,4.4282]
[1756998574304,2.1402,4337.9,4337.8,4.6662]
[1756998574511,1.027,4338.1,4337.8,4.6662]
[1756998574714,1.027,4338.1,4338.0,2.0749]
[1756998575417,0.1339,4338.1,4338.0,2.0749]
[1756998576409,2.2231,4338.7,4338.5,0.2829]
[1756998576607,0.8931,4339.9,4338.6,4.58476314]
[1756998576912,0.8931,4339.7,4338.7,31.8]
[1756998577112,3.2078,4340.1,4339.2,3.2078]
[1756998577306,0.8931,4339.9,4339.3,0.238]
[1756998577908,1.5113,4339.9,4339.4,0.238]
[1756998578107,0.6182,4339.9,4339.4,0.238]
[1756998578407,0.8931,4339.9,4339.4,0.238]
[1756998578711,0.8931,4339.9,4339.7,3.2078]
[1756998578901,0.8931,4339.9,4339.8,0.238]
[1756998579103,0.8931,4339.8,4339.7,3.2078]
[1756998579409,2.1402,4339.8,4339.7,3.4458]
[1756998580008,2.1402,4339.8,4339.7,0.238]
[1756998581808,2.1402,4339.1,4339.0,3.2078]
[1756998582007,1.2471,4338.8,4338.7,31.8]
[1756998582210,2.1402,4338.8,4338.7,32.038]
[1756998582707,2.1402,4338.8,4338.7,31.8]
[1756998583012,2.1402,4338.8,4338.7,32.038]
[1756998585812,2.1402,4338.8,4338.7,30.462]
[1756998586618,1.5113,4338.8,4338.7,30.462]
[1756998589924,0.8931,4338.8,4338.7,30.462]
[1756998592825,0.8931,4338.8,4338.7,30.224]
[1756998593024,0.8931,4338.8,4338.7,30.462]
[1756998595013,0.8931,4338.8,4338.7,29.702]
[1756998596723,2.4521,4338.0,4337.9,3.2078]
[1756998597028,2.4521,4338.0,4337.9,3.4458]
[1756998598024,1.8818,4338.0,4337.9,3.4458]
[1756998598726,2.4521,4338.0,4337.9,3.4458]
[1756998600119,0.3728,4338.5,4337.9,3.4458]
[1756998600322,0.9257,4338.4,4338.2,4.58476314]
[1756998600619,0.3728,4338.5,4338.3,0.238]
[1756998600825,0.9257,4338.7,4338.3,0.238]
[1756998601921,0.3728,4338.5,4338.4,3.2078]
[1756998602123,1.8818,4338.5,4338.4,3.2078]
[1756998602624,1.2985,4338.5,4338.4,3.2078]
[1756998602926,1.8818,4338.5,4338.4,3.2078]
[1756998603127,1.2985,4338.5,4338.4,3.2078]
[1756998603320,0.3494,4339.0,4338.4,3.2078]
[1756998603520,0.5833,4338.9,4338.5,0.238]
[1756998603719,2.0793,4338.6,4338.5,0.238]
[1756998604032,2.0793,4337.9,4337.8,3.24791904]
[1756998604218,2.0793,4337.9,4337.8,3.48591904]
[1756998604423,2.0793,4337.9,4337.8,3.4458]
[1756998604727,2.0793,4337.9,4337.8,0.238]
[1756998606120,2.0793,4337.9,4337.0,31.803]
[1756998606325,0.9257,4337.1,4337.0,31.803]
[1756998606525,0.9257,4337.1,4337.0,32.041]
[1756998607824,0.9257,4337.8,4337.1,0.41495]
[1756998608024,0.5833,4337.7,4337.3,4.58476314]
[1756998608228,0.3728,4337.5,4337.4,0.238]
[1756998608425,0.5833,4337.9,4337.4,0.238]
[1756998608620,0.3728,4338.0,4337.6,3.2078]
[1756998608827,0.9257,4338.2,4337.9,4.58476314]
[1756998609028,0.9257,4338.2,4338.1,3.2078]
[1756998609722,0.732,4338.4,4338.1,3.2078]
[1756998609921,1.509,4338.3,4338.2,0.238]
[1756998610121,2.0793,4338.3,4338.2,0.238]
[1756998610531,0.9257,4338.2,4338.1,3.2078]
[1756998610726,2.0793,4338.2,4338.1,3.4458]
[1756998611130,2.0793,4338.2,4338.1,0.238]
[1756998611322,0.9257,4337.4,4337.2,2.05690192]
[1756998611527,0.5833,4337.3,4337.1,3.2078]
[1756998611730,0.5833,4337.3,4337.2,0.238]
[1756998612132,1.509,4337.3,4337.2,0.238]
[1756998612736,1.4405,4337.2,4337.1,3.2078]
[1756998612937,1.4405,4337.2,4337.1,3.4458]
[1756998613344,2.0115,4337.2,4337.1,3.4458]
[1756998616046,2.0115,4337.2,4337.1,3.2078]
[1756998616245,2.0115,4337.2,4337.0,0.238]
[1756998616246,2.0115,4337.1,4337.0,0.238]
[1756998618840,0.8404,4337.0,4336.6,3.2078]
[1756998619045,0.5763,4336.8,4336.7,0.238]
[1756998619344,2.0115,4336.8,4336.7,0.238]
[1756998619545,2.0115,4336.8,4336.6,3.2078]
[1756998619846,2.0115,4336.8,4336.7,0.238]
[1756998620047,0.8642,4336.7,4336.6,3.2078]
[1756998620247,2.0115,4336.7,4336.6,3.4458]
[1756998621944,1.1473,4336.3,4336.2,2.05690192]
[1756998622144,2.0115,4336.3,4336.2,0.238]
[1756998622547,1.1473,4335.8,4335.6,2.05690192]
[1756998622847,1.1473,4335.8,4335.5,3.2078]
[1756998622848,1.1473,4335.8,4335.7,0.238]
[1756998623246,2.0115,4335.8,4335.7,0.238]
[1756998624354,1.1473,4335.6,4335.5,3.2078]
[1756998624547,2.0115,4335.6,4335.5,3.4458]
[1756998626654,1.4405,4335.6,4335.5,3.4458]
[1756998627157,2.0115,4335.6,4335.5,3.2078]
[1756998627364,2.0115,4335.6,4335.5,0.238]
[1756998628849,2.0115,4335.6,4334.7,0.0401451]
[1756998629151,2.0115,4334.9,4334.8,0.238]
[1756998629757,0.5763,4334.9,4334.8,0.238]
[1756998630155,0.3482,4335.0,4334.8,0.238]
[1756998630358,0.8642,4334.9,4334.8,0.238]
[1756998631456,1.4405,4334.9,4334.8,0.238]
[1756998631656,2.0115,4334.9,4334.8,0.238]
[1756998633456,2.0115,4334.9,4334.7,0.0401451]
[1756998633651,2.0115,4334.9,4334.8,0.238]
[1756998634349,5.2193,4334.9,4334.0,2.05690192]
[1756998634660,1.7887,4334.0,4333.9,3.2078]
[1756998634960,1.7887,4334.0,4333.9,3.4458]
[1756998635160,2.3597,4334.0,4333.9,3.4458]
[1756998636356,0.8642,4333.9,4333.7,31.819]
[1756998636562,2.3597,4334.0,4333.9,0.238]
[1756998639560,2.3597,4334.0,4333.9,3.4458]
[1756998639753,0.8642,4334.4,4333.9,3.48595608]
[1756998639956,0.5763,4334.4,4333.9,3.48595608]
[1756998640159,1.2124,4334.0,4333.9,3.48595608]
[1756998640463,0.8642,4334.4,4334.0,0.41525]
[1756998640656,0.8642,4334.4,4334.3,4.12919496]
[1756998640856,0.8642,4334.4,4334.3,4.36719496]
[1756998641058,1.4405,4334.4,4334.3,4.36719496]
[1756998641459,0.8642,4334.4,4334.3,4.36719496]
[1756998641856,0.3482,4335.0,4334.4,0.41521]
[1756998641857,0.8642,4334.8,4334.4,0.41521]
[1756998642059,0.3482,4335.0,4334.5,3.861]
[1756998642060,0.8642,4334.9,4334.5,3.861]
[1756998642362,0.8642,4334.9,4334.8,4.12919496]
[1756998642559,0.8642,4334.9,4334.8,4.36719496]
[1756998643065,1.4405,4334.9,4334.8,4.36719496]
[1756998644666,2.0028,4334.9,4334.8,4.36719496]
[1756998646869,0.8642,4334.9,4334.8,0.238]
[1756998647068,0.8642,4334.9,4334.8,4.78237496]
[1756998647268,1.4922,4335.4,4334.8,8.36719496]
[1756998647470,1.4922,4335.4,4335.3,4.12919496]
[1756998647672,1.4922,4335.4,4335.3,4.36719496]
[1756998647866,3.2078,4335.9,4335.3,4.36719496]
[1756998648063,1.2442,4336.0,4335.8,7.33699496]
[1756998648264,2.4027,4336.0,4335.9,0.238]
[1756998649375,0.3456,4335.5,4335.4,2.05690192]
[1756998649560,2.4001,4335.5,4335.4,2.29490192]
[1756998649765,2.4001,4335.5,4335.4,0.238]
[1756998649960,0.896,4335.4,4335.3,3.2078]
[1756998650174,2.0545,4335.4,4335.3,3.4458]
[1756998650474,0.896,4335.4,4335.3,3.4458]
[1756998651162,2.0545,4335.4,4335.2,6.18609688]
[1756998651368,1.1585,4335.4,4335.3,0.238]
[1756998651773,2.0545,4335.4,4335.3,0.238]
[1756998654073,0.3456,4335.0,4334.7,2.05690192]
[1756998654274,2.0545,4334.8,4334.7,2.05690192]
[1756998654474,2.0545,4334.8,4334.6,0.238]
[1756998654675,5.1585,4334.7,4334.0,2.05690192]
[1756998654980,0.3456,4335.0,4333.9,0.04015608]
[1756998654981,0.3456,4334.0,4333.9,0.04015608]
[1756998655179,2.4001,4334.0,4333.9,0.238]
[1756998655874,2.4001,4334.0,4333.9,0.8126]
[1756998656273,2.4001,4334.0,4333.9,1.4234]
[1756998656669,2.4001,4334.0,4333.9,2.2619]
[1756998656670,1.4922,4334.0,4333.9,2.2619]
[1756998656981,5.2623,4334.4,4334.3,0.5746]
[1756998657176,5.2623,4334.4,4334.3,0.238]
[1756998657378,5.2623,4334.4,4334.3,0.8126]
[1756998657577,5.2623,4334.4,4334.3,2.2619]
[1756998657578,4.7,4334.4,4334.3,2.2619]
[1756998657880,1.4922,4334.9,4334.8,0.5746]
[1756998658082,2.0545,4334.9,4334.8,1.4234]
[1756998658282,0.896,4335.4,4334.8,2.2619]
[1756998658479,0.896,4335.4,4334.9,3.2078]
[1756998658674,1.4922,4335.1,4335.0,1.4234]
[1756998658874,2.0545,4335.1,4335.0,0.238]
[1756998659077,2.0545,4335.1,4335.0,0.8126]
[1756998659274,0.896,4335.4,4335.1,0.8385]
[1756998659478,2.0545,4335.4,4335.3,0.5746]
[1756998660185,1.1585,4335.4,4335.3,0.8126]
[1756998660477,1.1585,4335.4,4335.3,0.238]
[1756998660679,1.1585,4335.4,4335.3,0.8126]
[1756998660885,2.0545,4335.4,4335.3,0.8126]
[1756998661178,2.0545,4335.4,4335.3,0.238]
[1756998661784,2.0545,4335.4,4334.9,3.2078]
[1756998661785,0.3456,4335.0,4334.9,3.2078]
[1756998661987,2.4001,4335.0,4334.9,4.0204]
[1756998662289,2.4001,4335.0,4334.9,0.8126]
[1756998662676,0.896,4334.9,4334.8,2.05690192]
[1756998662880,0.896,4334.9,4334.8,0.238]
[1756998662881,2.0545,4334.9,4334.8,0.238]
[1756998663088,2.0545,4334.9,4334.8,2.2619]
[1756998663380,1.4922,4334.9,4334.8,4.31880192]
[1756998663581,0.896,4335.4,4334.8,2.2619]
[1756998663787,1.4922,4335.0,4334.9,2.64186444]
[1756998663988,2.4001,4335.0,4334.9,2.64186444]
[1756998664287,2.4001,4335.0,4334.9,0.5746]
[1756998664491,2.4001,4335.0,4334.9,2.64172144]
[1756998664886,2.4001,4335.0,4334.9,2.87972144]
[1756998665086,2.4001,4335.0,4334.9,0.8126]
[1756998665285,2.4001,4335.0,4334.9,0.238]
[1756998666388,2.4001,4335.0,4334.9,2.30512144]
[1756998666588,2.4001,4335.0,4334.9,3.49052144]
[1756998666885,2.0545,4335.0,4334.9,4.32902144]
[1756998667192,2.4001,4335.0,4334.9,3.49052144]
[1756998667690,2.4001,4335.0,4334.9,2.06712144]
[1756998667892,2.4001,4335.0,4334.9,0.238]
[1756998668483,2.4001,4335.0,4334.9,2.87972144]
[1756998668788,2.4001,4335.0,4334.9,3.49052144]
[1756998669090,2.4001,4335.0,4334.9,1.4234]
[1756998669283,2.4001,4335.0,4334.9,3.49171479]
[1756998669483,2.4001,4335.0,4334.9,2.2619]
[1756998669684,2.0545,4335.0,4334.9,2.2619]
[1756998669892,2.0545,4335.0,4334.9,1.4234]
[1756998670085,2.4001,4335.0,4334.9,2.88159746]
[1756998670280,2.4001,4335.0,4334.9,2.06899746]
[1756998670488,2.4001,4335.0,4334.9,2.30699746]